bitfinex-derivatives/quotes_SOLF0:USTF0_20251002
["timestamp","ask_amount","ask_price","bid_price","bid_amount"]
[1759431736497,3.04745308,232.0,231.94,8.1574]
[1759431736705,3.04745308,231.99,231.94,8.1574]
[1759431736906,7.77,232.02,231.95,8.1573]
[1759431737108,3.04741075,232.01,231.95,8.1573]
[1759431737310,3.8759,232.04,231.95,8.1573]
[1759431737311,10.81741075,232.0,231.95,8.1573]
[1759431737510,3.04741075,231.99,231.95,8.1573]
[1759431737711,7.77,232.03,231.89,4.28]
[1759431737907,7.77,231.98,231.89,4.28]
[1759431738212,3.04853349,231.97,231.89,4.28]
[1759431738510,3.04853349,231.96,231.89,4.28]
[1759431738712,10.81853349,231.95,231.84,4.28]
[1759431738905,7.77,231.93,231.84,4.28]
[1759431739106,3.04853349,231.92,231.84,4.28]
[1759431739300,60.3096,231.98,231.82,107.5]
[1759431739301,7.77,231.9,231.82,107.5]
[1759431739502,10.81853349,231.89,231.82,107.5]
[1759431739709,3.04853349,231.88,231.82,111.78]
[1759431739909,7.77,231.94,231.83,8.1594]
[1759431740209,3.0506613,231.93,231.83,8.1594]
[1759431740408,3.0506613,231.92,231.83,8.1594]
[1759431740610,3.0506613,231.91,231.85,3.879]
[1759431741010,7.77,231.94,231.83,7.04440694]
[1759431741210,3.05035114,231.93,231.84,3.8792]
[1759431741406,3.05035114,231.92,231.83,7.04440694]
[1759431741608,7.77,231.94,231.83,7.04440694]
[1759431741609,10.82035114,231.91,231.83,4.28]
[1759431741809,3.05035114,231.9,231.83,4.28]
[1759431742005,7.77,231.91,231.83,4.28]
[1759431742412,7.77,231.91,231.84,3.8792]
[1759431742616,7.77,231.91,231.83,4.28]
[1759431743211,7.77,231.91,231.83,8.1594]
[1759431743812,7.77,231.97,231.86,2.76440694]
[1759431744008,3.04882631,231.96,231.87,4.28]
[1759431744214,7.77,231.97,231.87,4.28]
[1759431744412,3.04898237,231.96,231.87,4.28]
[1759431744713,7.77,231.97,231.88,3.8784]
[1759431744913,3.04894903,231.96,231.88,3.8784]
[1759431745113,7.77,231.97,231.88,3.8784]
[1759431745814,7.77,231.97,231.9,3.8782]
[1759431746015,7.77,232.05,231.9,4.28]
[1759431746209,7.77,232.03,231.92,2.76440694]
[1759431746414,5.81329537,232.02,231.86,4.28]
[1759431746613,7.77,232.0,231.87,49.0]
[1759431746814,3.04888843,231.99,231.88,3.8784]
[1759431747010,7.77,232.0,231.88,4.28]
[1759431747311,3.8769,231.98,231.88,4.28]
[1759431747616,7.42,231.97,231.88,7.04440694]
[1759431748616,7.42,231.97,231.91,3.878]
[1759431749408,3.8765,232.01,231.92,4.28]
[1759431749606,3.04939348,232.0,231.92,4.28]
[1759431749811,3.04939348,231.99,231.92,4.28]
[1759431750012,7.42,232.02,231.92,4.28]
[1759431750208,3.04948134,232.01,231.92,4.28]
[1759431750416,3.04948134,232.0,231.92,4.28]
[1759431750618,3.04948134,231.99,231.92,4.28]
[1759431750815,7.42,232.02,231.93,3.8776]
[1759431751017,7.42,232.02,231.92,4.28]
[1759431751814,7.07,232.07,231.96,8.1472]
[1759431752018,3.04863162,232.06,231.97,2.76440694]
[1759431752213,7.07,232.07,231.97,6.64140694]
[1759431752417,3.04736164,232.06,231.97,2.76440694]
[1759431752618,7.07,232.07,231.97,2.76440694]
[1759431752814,3.04744006,232.06,231.97,2.76440694]
[1759431753015,7.07,232.07,231.97,2.76440694]
[1759431753212,3.04745307,232.06,231.97,2.76440694]
[1759431753409,7.07,232.07,231.97,2.76440694]
[1759431753609,3.04668287,232.06,231.97,2.76440694]
[1759431753815,10.9454,232.07,231.97,6.64140694]
[1759431754122,3.04668287,232.06,231.97,3.877]
[1759431754314,10.9454,232.07,231.97,3.877]
[1759431754515,3.0459971,232.06,231.97,3.877]
[1759431754717,10.9454,232.07,231.97,3.877]
[1759431755019,3.0459971,232.06,231.97,3.877]
[1759431755214,10.9454,232.07,231.97,3.877]
[1759431755422,3.0453809,232.06,231.97,3.877]
[1759431755609,10.9454,232.07,231.97,3.877]
[1759431755812,3.0453809,232.06,231.97,3.877]
[1759431756015,10.9454,232.07,231.97,3.877]
[1759431756618,3.04493346,232.06,231.97,3.877]
[1759431756817,10.9454,232.07,231.97,3.877]
[1759431757018,3.04493346,232.06,231.97,3.877]
[1759431757221,10.9454,232.07,231.97,3.877]
[1759431757423,3.04450382,232.06,231.97,3.877]
[1759431757620,7.07,232.07,231.99,3.8766]
[1759431758323,7.07,232.07,232.0,3.8764]
[1759431758927,7.07,232.07,231.99,4.27]
[1759431759224,7.07,232.16,232.05,2.76440694]
[1759431759422,7.07,232.16,232.06,4.27]
[1759431759825,19.74033459,232.16,232.06,4.27]
[1759431760017,7.07,232.16,232.06,4.27]
[1759431760525,7.07,232.16,232.07,3.8752]
[1759431761026,7.07,232.16,232.06,4.27]
[1759431762021,7.07,232.16,232.1,3.8748]
[1759431762224,7.07,232.22,232.1,3.8748]
[1759431763027,19.89454396,232.22,232.1,3.8748]
[1759431763729,19.89454396,232.22,232.12,3.8745]
[1759431765124,3.8731,232.21,232.09,7.03440694]
[1759431765824,19.89454396,232.22,232.09,7.03440694]
[1759431766033,7.07,232.22,232.13,2.76440694]
[1759431766228,7.07,232.22,232.17,6.03571582]
[1759431766426,7.07,232.27,232.2,1.76571582]
[1759431766623,7.07,232.27,232.2,6.03571582]
[1759431766827,7.07,232.31,232.23,1.76571582]
[1759431767625,7.07,232.31,232.24,3.8725]
[1759431767830,7.07,232.31,232.26,1.76571582]
[1759431769033,7.07,232.31,232.26,6.03571582]
[1759431769634,1.76571582,232.37,232.27,4.27]
[1759431769837,3.8703,232.38,232.27,4.27]
[1759431769838,7.07,232.36,232.27,4.27]
[1759431770036,25.39670624,232.36,232.25,1.76571582]
[1759431770333,12.70631582,232.36,232.25,1.76571582]
[1759431770635,8.83571582,232.36,232.25,1.76571582]
[1759431772234,8.83571582,232.36,232.26,4.27]
[1759431773335,7.07,232.36,232.28,1.76571582]
[1759431775334,8.83571582,232.36,232.28,1.76571582]
[1759431777736,7.07,232.34,232.26,4.27]
[1759431777940,7.07,232.34,232.22,3.8727]
[1759431777941,7.07,232.32,232.23,1.76571582]
[1759431778535,7.07,232.29,232.22,4.27]
[1759431778834,7.07,232.29,232.17,6.03571582]
[1759431779039,10.9417,232.29,232.17,9.90941582]
[1759431779336,7.07,232.28,232.17,9.90941582]
[1759431780045,7.07,232.28,232.17,4.27]
[1759431780237,7.07,232.28,232.18,1.76571582]
[1759431781635,7.07,232.28,232.18,5.63921582]
[1759431783040,7.07,232.28,232.13,60.2674]
[1759431783041,7.3,232.26,232.15,5.63961582]
[1759431783234,1.76571582,232.24,232.14,1.76571582]
[1759431783439,7.3,232.23,232.14,1.76571582]
[1759431783935,7.3,232.21,232.11,1.76571582]
[1759431784145,9.06571582,232.21,232.11,1.76571582]
[1759431784946,7.3,232.17,232.08,1.76571582]
[1759431785641,7.3,232.17,232.08,5.64091582]
[1759431785940,7.3,232.17,232.09,1.76571582]
[1759431789442,11.1737,232.17,232.09,1.76571582]
[1759431789745,11.1737,232.17,232.06,1.76571582]
[1759431790139,3.8741,232.15,232.06,1.76571582]
[1759431790334,7.3,232.14,232.03,102.27571582]
[1759431790639,9.06571582,232.14,232.05,3.8757]
[1759431790941,7.3,232.14,232.06,1.76571582]
[1759431791342,1.76571582,232.2,232.09,1.76571582]
[1759431791545,7.3,232.19,232.09,1.76571582]
[1759431792242,7.3,232.19,232.1,4.27]
[1759431792442,7.3,232.19,232.12,1.76571582]
[1759431793742,7.3,232.19,232.09,1.76571582]
[1759431793942,7.3,232.17,232.09,1.76571582]
[1759431794947,7.3,232.17,232.06,4.27]
[1759431795247,7.3,232.17,232.07,5.64101582]
[1759431796048,7.3,232.17,232.1,1.76571582]
[1759431798546,7.3,232.17,232.11,3.8747]
[1759431798746,7.3,232.17,232.1,6.03571582]
[1759431798948,7.3,232.17,232.1,1.76571582]
[1759431803054,5.63871582,232.22,232.13,1.76571582]
[1759431803244,7.3,232.21,232.13,1.76571582]
[1759431806155,7.3,232.21,232.13,5.64001582]
[1759431808162,7.3,232.21,232.16,6.02571582]
[1759431808355,3.8726,232.24,232.08,4.26]
[1759431808660,7.15,232.21,232.12,1.76571582]
[1759431809161,11.0232,232.21,232.12,5.64011582]
[1759431809460,7.15,232.21,232.12,1.76571582]
[1759431810156,7.15,232.21,232.15,1.76571582]
[1759431814862,7.15,232.21,232.14,3.8741]
[1759431815463,7.15,232.21,232.15,3.8739]
[1759431815663,7.15,232.24,232.16,1.76571582]
[1759431816462,7.15,232.24,232.2,4.26]
[1759431816658,7.15,232.24,232.22,1.76571582]
[1759431816860,7.15,232.29,232.22,1.76571582]
[1759431817855,7.15,232.29,232.23,3.8727]
[1759431818565,7.15,232.32,232.24,3.8724]
[1759431821462,7.15,232.32,232.26,3.8722]
[1759431821666,7.15,232.36,232.25,6.02571582]
[1759431821866,7.15,232.36,232.26,4.26]
[1759431822569,7.15,232.36,232.3,3.8715]
[1759431822866,7.15,232.36,232.3,5.63721582]
[1759431823758,7.15,232.36,232.3,1.76571582]
[1759431825758,1.76571582,232.37,232.26,3.8721]
[1759431825963,7.15,232.36,232.25,1.76571582]
[1759431826365,3.8704,232.37,232.25,3.8724]
[1759431826561,7.15,232.36,232.25,3.8724]
[1759431826962,3.8707,232.35,232.25,3.8724]
[1759431827167,7.15,232.34,232.25,3.8724]
[1759431829573,7.15,232.34,232.23,4.26]
[1759431829975,7.15,232.32,232.19,4.26]
[1759431830278,62.96956268,232.35,232.19,4.26]
[1759431830279,7.15,232.3,232.19,4.26]
[1759431830681,7.15,232.28,232.19,8.1333]
[1759431831279,3.8721,232.27,232.17,9.64407347]
[1759431831478,7.15,232.26,232.17,5.77037347]
[1759431831783,7.15,232.26,232.19,3.8733]
[1759431832186,7.15,232.26,232.17,5.77037347]
[1759431832577,7.15,232.3,232.17,5.77037347]
[1759431832777,10.17281722,232.3,232.17,5.77037347]
[1759431833177,7.15,232.27,232.17,5.77037347]
[1759431833384,7.15,232.27,232.19,2.75696268]
[1759431834285,7.15,232.34,232.2,4.26]
[1759431834584,7.15,232.34,232.26,3.8721]
[1759431837399,7.15,232.34,232.25,4.26]
[1759431838588,7.15,232.34,232.28,3.8717]
[1759431840095,7.15,232.38,232.28,3.8717]
[1759431840285,7.15,232.38,232.26,2.75696268]
[1759431840790,7.15,232.38,232.25,4.26]
[1759431841190,11.0202,232.38,232.25,4.26]
[1759431841391,7.15,232.38,232.25,4.26]
[1759431841691,7.15,232.38,232.26,3.8722]
[1759431841887,7.15,232.38,232.26,4.27]
[1759431842084,7.15,232.38,232.29,8.1417]
[1759431842889,7.15,232.38,232.25,4.27]
[1759431843689,3.8705,232.37,232.26,3.8721]
[1759431843997,7.59,232.37,232.26,3.8721]
[1759431845685,11.4604,232.37,232.26,3.8721]
[1759431848395,11.4604,232.37,232.27,3.8719]
[1759431848795,7.59,232.37,232.25,4.27]
[1759431848991,7.59,232.37,232.3,3.8715]
[1759431852101,7.59,232.37,232.31,3.8712]
[1759431852302,3.8696,232.42,232.31,3.8712]
[1759431852303,3.8696,232.42,232.31,4.27]
[1759431852509,7.59,232.41,232.31,4.27]
[1759431852902,7.59,232.41,232.33,3.8709]
[1759431853904,20.27764011,232.41,232.33,3.8709]
[1759431854998,20.27764011,232.41,232.31,10.89836268]
[1759431855199,7.59,232.4,232.31,10.89836268]
[1759431855401,7.59,232.4,232.27,7.02696268]
[1759431855606,3.02768286,232.39,232.27,8.1419]
[1759431855907,7.59,232.42,232.27,8.1419]
[1759431856104,7.59,232.4,232.27,8.1419]
[1759431856405,7.59,232.38,232.27,8.1419]
[1759431856607,11.4603,232.38,232.27,8.1419]
[1759431856808,7.59,232.38,232.27,8.1419]
[1759431857004,7.59,232.38,232.28,3.8718]
[1759431857606,3.02979704,232.37,232.25,3.8723]
[1759431857797,10.61979704,232.36,232.25,3.8723]
[1759431858102,7.59,232.34,232.25,3.8723]
[1759431859705,11.4609,232.34,232.25,3.8723]
[1759431860712,11.4609,232.34,232.23,3.8727]
[1759431861107,11.4609,232.34,232.22,4.27]
[1759431862613,11.4609,232.34,232.24,3.8724]
[1759431863013,11.4609,232.34,232.25,4.27]
[1759431863611,11.4609,232.34,232.25,8.1422]
[1759431863817,7.59,232.34,232.25,8.1422]
[1759431865811,7.59,232.34,232.26,3.8721]
[1759431866120,7.44,232.4,232.27,4.27]
[1759431866417,7.44,232.38,232.27,4.27]
[1759431866617,7.44,232.36,232.26,3.8721]
[1759431866813,2.75696268,232.39,232.26,3.8721]
[1759431866814,7.44,232.34,232.26,3.8721]
[1759431867720,10.19696268,232.34,232.23,8.1426]
[1759431868018,7.44,232.32,232.23,4.27]
[1759431868218,7.44,232.32,232.24,3.8724]
[1759431868814,7.44,232.32,232.23,4.27]
[1759431869008,2.75696268,232.38,232.25,4.27]
[1759431869215,10.46330892,232.37,232.25,4.27]
[1759431869414,3.02330892,232.36,232.25,4.27]
[1759431869615,3.02330892,232.35,232.25,4.27]
[1759431869816,7.44,232.37,232.25,4.27]
[1759431870010,3.02340512,232.36,232.29,3.8716]
[1759431870216,3.02340512,232.35,232.29,3.8716]
[1759431870418,7.44,232.37,232.29,3.8716]
[1759431870618,3.0235325,232.36,232.29,3.8716]
[1759431870813,3.0235325,232.35,232.29,3.8716]
[1759431871015,7.44,232.37,232.29,3.8716]
[1759431871217,3.0235325,232.36,232.29,3.8716]
[1759431871419,3.0235325,232.35,232.29,3.8716]
[1759431871620,7.44,232.37,232.29,3.8716]
[1759431871817,3.0235324,232.36,232.29,3.8716]
[1759431872016,3.0235324,232.35,232.29,3.8716]
[1759431872217,7.44,232.37,232.29,3.8716]
[1759431872415,3.02353814,232.36,232.29,3.8716]
[1759431872616,3.02353814,232.35,232.29,3.8716]
[1759431872916,7.44,232.37,232.29,3.8716]
[1759431873119,3.02353814,232.36,232.29,3.8716]
[1759431873318,7.34,232.34,232.29,3.8716]
[1759431873520,7.34,232.36,232.29,3.8716]
[1759431874217,7.34,232.36,232.25,4.27]
[1759431874416,3.02288862,232.4,232.3,64.4937]
[1759431874623,7.34,232.42,232.3,4.27]
[1759431874919,7.34,232.4,232.31,3.8714]
[1759431875120,7.34,232.4,232.3,4.27]
[1759431875422,7.34,232.38,232.28,3.8718]
[1759431875623,7.34,232.36,232.28,3.8718]
[1759431876420,7.34,232.36,232.26,3.8722]
[1759431876627,7.34,232.34,232.26,3.8722]
[1759431878026,7.34,232.34,232.27,4.27]
[1759431879226,7.34,232.34,232.28,3.8719]
[1759431879630,7.34,232.41,232.28,2.75696268]
[1759431879823,3.02734493,232.4,232.32,3.8712]
[1759431880021,3.02734493,232.39,232.32,3.8712]
[1759431880216,3.02734493,232.38,232.32,3.8712]
[1759431880421,7.34,232.41,232.32,3.8712]
[1759431880622,3.02678874,232.4,232.32,3.8712]
[1759431880818,3.02678874,232.39,232.32,3.8712]
[1759431881018,7.34,232.41,232.32,3.8712]
[1759431881321,7.34,232.39,232.29,4.27]
[1759431882428,7.34,232.39,232.29,8.1416]
[1759431883229,3.02633288,232.38,232.29,8.1416]
[1759431883424,7.34,232.39,232.29,8.1416]
[1759431883618,3.02638034,232.38,232.29,8.1416]
[1759431883821,7.34,232.39,232.3,3.8714]
[1759431884025,3.02636816,232.38,232.3,3.8714]
[1759431884226,7.34,232.39,232.3,3.8714]
[1759431884429,3.02626056,232.38,232.3,3.8714]
[1759431884632,7.34,232.39,232.31,3.8712]
[1759431884830,3.02626346,232.38,232.31,3.8712]
[1759431885130,7.34,232.39,232.31,3.8712]
[1759431885332,3.02627419,232.38,232.31,3.8712]
[1759431885521,3.02630144,232.37,232.29,8.1417]
[1759431885724,3.02645194,232.36,232.29,3.8717]
[1759431885924,7.34,232.35,232.29,3.8717]
[1759431886329,7.34,232.35,232.29,5.6357069]
[1759431888729,7.34,232.35,232.28,4.27]
[1759431888935,7.34,232.35,232.29,1.7640069]
[1759431891625,3.8705,232.37,232.3,3.8715]
[1759431891821,1.7640069,232.4,232.3,3.8715]
[1759431891822,10.37316238,232.36,232.3,3.8715]
[1759431892027,7.34,232.36,232.3,3.8715]
[1759431892630,7.34,232.36,232.32,4.27]
[1759431893030,7.34,232.41,232.31,5.6353069]
[1759431893226,7.34,232.39,232.31,5.6353069]
[1759431893432,3.0329397,232.38,232.31,5.6353069]
[1759431893631,7.34,232.39,232.32,3.871]
[1759431893828,3.03284645,232.38,232.32,3.871]
[1759431894022,7.34,232.39,232.32,3.871]
[1759431894224,7.34,232.37,232.31,1.7640069]
[1759431894427,3.03286259,232.36,232.3,3.8715]
[1759431894628,7.34,232.38,232.28,1.7640069]
[1759431894827,7.34,232.36,232.28,1.7640069]
[1759431895233,7.34,232.36,232.27,1.7640069]
[1759431895234,11.2105,232.36,232.27,1.7640069]
[1759431895428,3.0331097,232.35,232.27,1.7640069]
[1759431895627,7.34,232.34,232.27,1.7640069]
[1759431896633,7.34,232.34,232.27,5.6359069]
[1759431898335,7.34,232.34,232.27,3.8719]
[1759431898535,7.34,232.34,232.27,5.6359069]
[1759431901232,7.34,232.34,232.28,3.8718]
[1759431901534,7.34,232.34,232.27,1.7640069]
[1759431901739,1.7640069,232.39,232.28,4.27]
[1759431901939,10.15405201,232.38,232.28,4.27]
[1759431902138,7.12,232.38,232.31,8.1412]
[1759431903138,10.9904,232.38,232.31,1.7640069]
[1759431903334,3.03391817,232.37,232.31,1.7640069]
[1759431903639,7.12,232.37,232.31,1.7640069]
[1759431907544,7.12,232.37,232.31,5.6353069]
[1759431909746,7.12,232.38,232.26,4.27]
[1759431909943,7.12,232.35,232.26,6.0340069]
[1759431910648,7.12,232.35,232.27,4.27]
[1759431910848,7.12,232.35,232.29,1.7640069]
[1759431911343,7.12,232.35,232.29,5.6357069]
[1759431912151,3.8703,232.38,232.3,3.8714]
[1759431912449,10.15522433,232.37,232.3,3.8714]
[1759431912648,3.03522433,232.36,232.3,3.8714]
[1759431912848,7.12,232.37,232.3,3.8714]
[1759431913050,3.03522433,232.36,232.3,3.8714]
[1759431913345,7.12,232.45,232.36,4.27]
[1759431913651,3.03494663,232.44,232.37,1.7640069]
[1759431913853,10.15482991,232.43,232.32,8.1411]
[1759431914052,7.12,232.43,232.34,1.7640069]
[1759431914246,7.12,232.43,232.35,1.7640069]
[1759431914446,7.12,232.41,232.33,1.7640069]
[1759431914647,7.12,232.39,232.32,4.27]
[1759431915150,3.8691,232.45,232.28,6.0340069]
[1759431915151,7.12,232.37,232.28,6.0340069]
[1759431915445,7.12,232.37,232.28,4.27]
[1759431916352,3.03482059,232.36,232.28,4.27]
[1759431916646,7.12,232.37,232.27,1.7640069]
[1759431916848,7.12,232.35,232.25,4.27]
[1759431917151,7.12,232.33,232.25,4.27]
[1759431917651,7.12,232.33,232.25,8.1423]
[1759431917950,7.12,232.33,232.27,1.7640069]
[1759431918645,60.1925,232.43,232.27,1.7640069]
[1759431918646,1.7640069,232.39,232.27,1.7640069]
[1759431918850,7.12,232.36,232.27,1.7640069]
[1759431919653,8.8840069,232.36,232.27,1.7640069]
[1759431920353,7.12,232.36,232.28,4.27]
[1759431921055,7.12,232.36,232.3,1.7640069]
[1759431921744,7.12,232.36,232.27,1.7640069]
[1759431922355,7.12,232.36,232.27,6.0340069]
[1759431922852,7.12,232.36,232.28,3.8719]
[1759431923048,7.12,232.36,232.27,6.0340069]
[1759431923253,7.12,232.36,232.27,1.7640069]
[1759431924456,7.12,232.36,232.25,3.8722]
[1759431924657,7.22,232.33,232.24,4.27]
[1759431924855,7.22,232.3,232.23,4.7634352]
[1759431925052,7.22,232.3,232.2,4.7634352]
[1759431925251,7.22,232.27,232.19,4.7634352]
[1759431925554,7.22,232.27,232.18,4.7634352]
[1759431925853,7.22,232.27,232.19,6.0540069]
[1759431926055,7.22,232.27,232.19,10.8174421]
[1759431926356,7.22,232.27,232.21,3.873]
[1759431926655,1.7640069,232.32,232.23,4.29]
[1759431926857,7.22,232.31,232.23,4.29]
[1759431927555,7.22,232.31,232.23,8.1626]
[1759431928056,7.22,232.31,232.23,4.29]
[1759431928450,11.0914,232.31,232.23,4.29]
[1759431928653,11.0914,232.31,232.22,1.7640069]
[1759431929356,7.22,232.31,232.22,5.6369069]
[1759431930158,7.22,232.31,232.23,3.8726]
[1759431930959,7.22,232.31,232.22,6.0540069]
[1759431932563,9.4640069,232.29,232.19,1.7640069]
[1759431934363,9.4640069,232.29,232.19,6.0540069]
[1759431934563,9.4640069,232.29,232.2,3.8731]
[1759431935464,1.7640069,232.29,232.17,11.40798037]
[1759431935667,7.7,232.27,232.17,7.53438037]
[1759431935869,7.7,232.27,232.18,3.8734]
[1759431936356,7.7,232.27,232.17,11.82438037]
[1759431936555,7.7,232.27,232.2,5.6372069]
[1759431937860,7.7,232.27,232.21,8.1629]
[1759431938566,7.7,232.27,232.21,3.8729]
[1759431939466,7.7,232.27,232.21,8.1629]
[1759431939669,7.7,232.27,232.23,4.29]
[1759431941067,1.7640069,232.31,232.22,3.8727]
[1759431941068,7.7,232.3,232.22,3.8727]
[1759431942764,7.7,232.3,232.23,9.9266069]
[1759431943873,7.7,232.3,232.21,5.6370069]
[1759431944072,1.7640069,232.33,232.22,4.29]
[1759431944275,7.26062039,232.45,232.22,4.29]
[1759431944276,7.7,232.36,232.32,1.7640069]
[1759431944468,7.7,232.42,232.32,5.6352069]
[1759431944669,7.7,232.42,232.32,1.7640069]
[1759431945072,7.7,232.42,232.34,1.7640069]
[1759431945370,7.7,232.42,232.31,4.29]
[1759431945572,7.7,232.42,232.33,1.7640069]
[1759431946368,7.7,232.42,232.31,4.29]
[1759431947079,7.7,232.42,232.32,2.75571931]
[1759431948073,63.11202321,232.46,232.29,110.6516]
[1759431948379,2.92772321,232.45,232.29,110.6516]
[1759431948574,3.8698,232.41,232.29,8.1616]
[1759431948777,7.7,232.4,232.29,8.1616]
[1759431949773,7.7,232.38,232.25,4.29]
[1759431949978,7.7,232.42,232.25,111.07]
[1759431950172,3.87,232.4,232.26,3.8721]
[1759431950367,7.7,232.39,232.26,3.8721]
[1759431950567,10.45571931,232.39,232.26,3.8721]
[1759431951566,3.8706,232.36,232.26,3.8721]
[1759431951770,7.7,232.35,232.26,3.8721]
[1759431952276,7.7,232.35,232.28,3.8718]
[1759431952970,7.7,232.35,232.27,60.2307]
[1759431953176,10.63925428,232.41,232.29,4.29]
[1759431953371,7.7,232.41,232.29,4.29]
[1759431953568,7.7,232.39,232.28,3.8719]
[1759431953771,7.7,232.39,232.28,60.2299]
[1759431953975,2.93921524,232.45,232.32,4.29]
[1759431954173,7.7,232.44,232.32,4.29]
[1759431954372,7.7,232.44,232.34,2.75571931]
[1759431954573,7.7,232.48,232.38,4.29]
[1759431954774,7.7,232.48,232.4,2.75571931]
[1759431955480,7.7,232.48,232.4,6.62551931]
[1759431955667,7.7,232.48,232.4,2.75571931]
[1759431956170,7.7,232.48,232.34,2.75571931]
[1759431956368,2.93606478,232.47,232.34,2.75571931]
[1759431956573,7.7,232.46,232.34,2.75571931]
[1759431957369,7.7,232.43,232.34,6.62651931]
[1759431957879,7.7,232.43,232.34,3.8708]
[1759431958578,7.7,232.43,232.32,4.29]
[1759431958775,7.7,232.41,232.24,65.88864272]
[1759431958979,7.7,232.43,232.27,111.03]
[1759431959186,60.1885,232.44,232.27,111.03]
[1759431959371,7.7,232.41,232.29,2.75571931]
[1759431959575,7.7,232.41,232.3,4.29]
[1759431959771,7.7,232.41,232.33,4.29]
[1759431960273,7.7,232.41,232.34,3.8708]
[1759431960676,7.7,232.41,232.33,4.29]
[1759431962278,7.7,232.41,232.34,3.8707]
[1759431962877,7.7,232.41,232.36,3.8705]
[1759431963180,7.7,232.41,232.36,8.1605]
[1759431964281,7.7,232.41,232.36,3.8705]
[1759431964481,7.7,232.41,232.36,8.1605]
[1759431964678,7.7,232.41,232.37,4.29]
[1759431964978,7.28,232.46,232.36,3.8705]
[1759431965178,11.149,232.46,232.38,3.8702]
[1759431965682,7.28,232.46,232.33,4.29]
[1759431966584,3.8693,232.44,232.34,3.8709]
[1759431966878,7.28,232.43,232.32,2.75571931]
[1759431967083,3.8697,232.41,232.33,3.8709]
[1759431967277,7.28,232.4,232.33,3.8709]
[1759431967489,7.28,232.4,232.31,4.29]
[1759431967982,7.28,232.4,232.34,3.8707]
[1759431968373,7.28,232.4,232.31,4.29]
[1759431968780,7.28,232.4,232.33,3.871]
[1759431971288,7.28,232.4,232.35,3.8707]
[1759431971490,7.28,232.4,232.35,8.1607]
[1759431971784,7.28,232.4,232.35,3.8707]
[1759431971983,7.28,232.45,232.34,2.75571931]
[1759431972191,7.28,232.45,232.32,60.2193]
[1759431972192,7.28,232.45,232.37,2.75571931]
[1759431973589,7.28,232.45,232.38,3.8701]
[1759431974787,7.28,232.45,232.39,3.8699]
[1759431974983,7.28,232.45,232.38,4.29]
[1759431975791,60.1787,232.48,232.33,2.75571931]
[1759431976093,10.21257749,232.47,232.33,2.75571931]
[1759431976491,3.8691,232.45,232.34,3.8707]
[1759431976695,7.28,232.44,232.34,4.29]
[1759431977293,7.28,232.44,232.36,2.75571931]
[1759431977699,7.28,232.44,232.34,4.29]
[1759431978591,7.28,232.42,232.34,8.1607]
[1759431978993,7.28,232.42,232.34,4.29]
[1759431980093,7.28,232.4,232.33,3.871]
[1759431980498,7.28,232.4,232.29,7.04571931]
[1759431981700,11.15,232.4,232.31,3.8713]
[1759431981895,7.28,232.39,232.26,313.2]
[1759431982096,7.28,232.37,232.26,313.2]